[Event "*** Titled Tuesday Blitz"]
[Site "Chess.com"]
[Date "2021.03.16"]
[Round "10"]
[White "mjray79"]
[Black "ChrisTool2"]
[Result "1-0"]
[WhiteElo "2472"]
[BlackElo "2348"]
[TimeControl "180+1"]
[EndTime "11:52:42 PDT"]
[Termination "mjray79 won by resignation"]

1. d4 {[%clk 0:03:00.9]} 1... Nf6 {[%clk 0:01:04.5]} 2. c4 {[%clk 0:03:00.7]}
2... e6 {[%clk 0:01:04.8]} 3. g3 {[%clk 0:03:00.7]} 3... d5 {[%clk 0:01:05.5]}
4. Bg2 {[%clk 0:03:01.3]} 4... dxc4 {[%clk 0:01:05.4]} 5. Nf3 {[%clk 0:03:01.9]}
5... Nc6 {[%clk 0:01:05.8]} 6. O-O {[%clk 0:03:02.4]} 6... a6 {[%clk 0:01:06.3]}
7. e3 {[%clk 0:02:54.6]} 7... Rb8 {[%clk 0:01:05.2]} 8. Qe2 {[%clk 0:02:54.4]}
8... b5 {[%clk 0:01:05.6]} 9. b3 {[%clk 0:02:55]} 9... cxb3 {[%clk 0:01:05.4]}
10. axb3 {[%clk 0:02:55.9]} 10... Bb7 {[%clk 0:01:05.2]} 11. Bb2 {[%clk
0:02:53.6]} 11... Be7 {[%clk 0:01:05]} 12. Nc3 {[%clk 0:02:49.4]} 12... O-O
{[%clk 0:01:03.8]} 13. Rfd1 {[%clk 0:02:49.6]} 13... Nb4 {[%clk 0:01:03.7]} 14.
Na2 {[%clk 0:02:42.9]} 14... Nxa2 {[%clk 0:01:00.5]} 15. Rxa2 {[%clk 0:02:43.8]}
15... Qc8 {[%clk 0:00:58]} 16. Raa1 {[%clk 0:02:39.9]} 16... Ne4 {[%clk
0:00:57.6]} 17. Rac1 {[%clk 0:02:37.6]} 17... Bd5 {[%clk 0:00:57.1]} 18. Qc2
{[%clk 0:02:30.8]} 18... Bd6 {[%clk 0:00:51.3]} 19. Ne5 {[%clk 0:02:23.7]} 19...
f5 {[%clk 0:00:45.2]} 20. Nc6 {[%clk 0:02:17.2]} 20... Rb6 {[%clk 0:00:39.6]}
21. Ne5 {[%clk 0:02:13.5]} 21... Bxe5 {[%clk 0:00:35.9]} 22. dxe5 {[%clk
0:02:14.4]} 22... c6 {[%clk 0:00:34.1]} 23. f3 {[%clk 0:02:09.7]} 23... Ng5
{[%clk 0:00:33.9]} 24. e4 {[%clk 0:02:09.7]} 24... fxe4 {[%clk 0:00:26.6]} 25.
fxe4 {[%clk 0:02:10.6]} 25... Qe8 {[%clk 0:00:20.1]} 26. exd5 {[%clk 0:02:10]}
26... cxd5 {[%clk 0:00:20.7]} 27. Rf1 {[%clk 0:02:05.1]} 27... Rxf1+ {[%clk
0:00:19.3]} 28. Rxf1 {[%clk 0:02:06]} 28... Rb8 {[%clk 0:00:18.5]} 29. h4 {[%clk
0:02:02.8]} 29... Nf7 {[%clk 0:00:18.1]} 30. Rc1 {[%clk 0:01:57.7]} 30... h6
{[%clk 0:00:16.9]} 31. Qc7 {[%clk 0:01:57.7]} 31... b4 {[%clk 0:00:14.6]} 32.
Qc6 {[%clk 0:01:57.3]} 32... Qf8 {[%clk 0:00:11.7]} 33. Qxe6 {[%clk 0:01:55.5]}
33... Re8 {[%clk 0:00:12.2]} 34. Qxd5 {[%clk 0:01:55.4]} 34... Kh8 {[%clk
0:00:12.7]} 35. Rf1 {[%clk 0:01:54.2]} 35... Qe7 {[%clk 0:00:12.5]} 36. Qxf7
{[%clk 0:01:52.3]} 1-0

[Event "*** Titled Tuesday Blitz"]
[Site "Chess.com"]
[Date "2021.03.16"]
[Round "10"]
[White "IsaacWiebe"]
[Black "SilviusTiberius"]
[Result "0-1"]
[WhiteElo "2272"]
[BlackElo "2533"]
[TimeControl "180+1"]
[EndTime "11:52:45 PDT"]
[Termination "SilviusTiberius won by checkmate"]

1. d4 {[%clk 0:03:00.9]} 1... Nf6 {[%clk 0:02:59.3]} 2. c4 {[%clk 0:03:00.5]}
2... e6 {[%clk 0:02:59.7]} 3. Nf3 {[%clk 0:02:59.7]} 3... d5 {[%clk 0:03:00]} 4.
Nc3 {[%clk 0:02:58.6]} 4... Be7 {[%clk 0:03:00.4]} 5. Bg5 {[%clk 0:02:58.4]}
5... h6 {[%clk 0:02:59.9]} 6. Bh4 {[%clk 0:02:57]} 6... O-O {[%clk 0:02:59.7]}
7. Rc1 {[%clk 0:02:55.5]} 7... dxc4 {[%clk 0:02:55.7]} 8. e4 {[%clk 0:02:54]}
8... Nxe4 {[%clk 0:02:31.8]} 9. Bxe7 {[%clk 0:02:53.9]} 9... Nxc3 {[%clk
0:02:31.4]} 10. Bxd8 {[%clk 0:02:51.2]} 10... Nxd1 {[%clk 0:02:31.7]} 11. Be7
{[%clk 0:02:46.9]} 11... Nxb2 {[%clk 0:02:18.2]} 12. Bxf8 {[%clk 0:02:45.5]}
12... Kxf8 {[%clk 0:02:19.1]} 13. Bxc4 {[%clk 0:02:45.2]} 13... Bd7 {[%clk
0:02:06.7]} 14. Bb3 {[%clk 0:02:36.6]} 14... Nd3+ {[%clk 0:02:05.8]} 15. Kd2
{[%clk 0:02:35.5]} 15... Nxc1 {[%clk 0:02:06.4]} 16. Rxc1 {[%clk 0:02:35.7]}
16... Nc6 {[%clk 0:02:02.6]} 17. d5 {[%clk 0:02:33.8]} 17... exd5 {[%clk
0:02:01.6]} 18. Bxd5 {[%clk 0:02:34.7]} 18... Rd8 {[%clk 0:02:01.9]} 19. Ke1
{[%clk 0:02:28.4]} 19... Nb4 {[%clk 0:01:58.4]} 20. Bc4 {[%clk 0:02:25.8]} 20...
Be6 {[%clk 0:01:54]} 21. Ke2 {[%clk 0:02:21.6]} 21... Nxa2 {[%clk 0:01:48]} 22.
Bxa2 {[%clk 0:02:18.9]} 22... Bxa2 {[%clk 0:01:47.4]} 23. Rxc7 {[%clk
0:02:19.8]} 23... Bd5 {[%clk 0:01:46.4]} 24. Ke3 {[%clk 0:02:08.4]} 24... Bxf3
{[%clk 0:01:37.7]} 25. Kxf3 {[%clk 0:02:07.8]} 25... Rd3+ {[%clk 0:01:36.5]} 26.
Ke4 {[%clk 0:02:06]} 26... Rb3 {[%clk 0:01:36.9]} 27. Kd4 {[%clk 0:02:05.6]}
27... a5 {[%clk 0:01:35.5]} 28. Kc4 {[%clk 0:02:05.3]} 28... a4 {[%clk
0:01:34.8]} 29. f4 {[%clk 0:02:01.5]} 29... b5+ {[%clk 0:01:33.7]} 30. Kd4
{[%clk 0:01:58.3]} 30... a3 {[%clk 0:01:33.6]} 31. Ra7 {[%clk 0:01:53.1]} 31...
b4 {[%clk 0:01:32.4]} 32. Kc5 {[%clk 0:01:40.1]} 32... g6 {[%clk 0:01:25.9]} 33.
g4 {[%clk 0:01:27.3]} 33... Rb2 {[%clk 0:01:20.3]} 34. f5 {[%clk 0:01:26.8]}
34... gxf5 {[%clk 0:01:20.5]} 35. gxf5 {[%clk 0:01:27.2]} 35... Kg7 {[%clk
0:01:21.1]} 36. Kd6 {[%clk 0:01:27.4]} 36... a2 {[%clk 0:01:20.8]} 37. Ke7
{[%clk 0:01:19.1]} 37... Re2+ {[%clk 0:01:20]} 38. Kd8 {[%clk 0:01:19.1]} 38...
b3 {[%clk 0:01:19.8]} 39. Ra3 {[%clk 0:01:19.2]} 39... Re1 {[%clk 0:01:17.9]}
40. f6+ {[%clk 0:01:17]} 40... Kxf6 {[%clk 0:01:17.5]} 41. Rxb3 {[%clk
0:01:17.1]} 41... a1=Q {[%clk 0:01:15.9]} 42. Rf3+ {[%clk 0:01:18]} 42... Ke6
{[%clk 0:01:14]} 43. h4 {[%clk 0:01:13.5]} 43... Qa5+ {[%clk 0:01:09.9]} 44. Ke8
{[%clk 0:01:13.3]} 44... Qa8# {[%clk 0:01:10]} 0-1

[Event "*** Titled Tuesday Blitz"]
[Site "Chess.com"]
[Date "2021.03.16"]
[Round "10"]
[White "djano"]
[Black "Speed-O-Sonic"]
[Result "1-0"]
[WhiteElo "2486"]
[BlackElo "2359"]
[TimeControl "180+1"]
[EndTime "11:52:45 PDT"]
[Termination "djano won by resignation"]

1. e4 {[%clk 0:02:59.8]} 1... c6 {[%clk 0:03:00.5]} 2. d4 {[%clk 0:02:59.1]}
2... d5 {[%clk 0:03:01.4]} 3. exd5 {[%clk 0:03:00]} 3... cxd5 {[%clk 0:02:57.1]}
4. Bd3 {[%clk 0:03:00.1]} 4... Nc6 {[%clk 0:02:56.1]} 5. c3 {[%clk 0:02:58.9]}
5... Qc7 {[%clk 0:02:56.6]} 6. Nf3 {[%clk 0:02:51.9]} 6... Bg4 {[%clk
0:02:53.9]} 7. Nbd2 {[%clk 0:02:48.3]} 7... e6 {[%clk 0:02:53.6]} 8. O-O {[%clk
0:02:47.2]} 8... Bd6 {[%clk 0:02:45.5]} 9. h3 {[%clk 0:02:47]} 9... Bh5 {[%clk
0:02:45.7]} 10. Re1 {[%clk 0:02:43.4]} 10... Nf6 {[%clk 0:02:42.9]} 11. Qc2
{[%clk 0:02:30.7]} 11... O-O {[%clk 0:02:36.4]} 12. g4 {[%clk 0:02:24]} 12...
Bg6 {[%clk 0:02:34.2]} 13. Bxg6 {[%clk 0:02:22.6]} 13... hxg6 {[%clk 0:02:35.1]}
14. Kg2 {[%clk 0:02:18.2]} 14... Rae8 {[%clk 0:02:26.1]} 15. Qd3 {[%clk
0:02:12]} 15... e5 {[%clk 0:02:21.7]} 16. dxe5 {[%clk 0:02:11.7]} 16... Nxe5
{[%clk 0:02:22.6]} 17. Nxe5 {[%clk 0:02:12]} 17... Rxe5 {[%clk 0:02:18.1]} 18.
Rxe5 {[%clk 0:02:11.6]} 18... Bxe5 {[%clk 0:02:19]} 19. Nf3 {[%clk 0:02:11.5]}
19... Bf4 {[%clk 0:02:17.8]} 20. Qd4 {[%clk 0:01:59.3]} 20... Bxc1 {[%clk
0:02:06.3]} 21. Rxc1 {[%clk 0:02:00.2]} 21... Rd8 {[%clk 0:02:05.9]} 22. Qxa7
{[%clk 0:01:44.1]} 22... Nxg4 {[%clk 0:01:37.9]} 23. hxg4 {[%clk 0:01:29.7]}
23... Qf4 {[%clk 0:01:35.1]} 24. Qe3 {[%clk 0:01:30.1]} 24... Qxg4+ {[%clk
0:01:34.6]} 25. Kh1 {[%clk 0:01:24.2]} 25... d4 {[%clk 0:01:17.8]} 26. cxd4
{[%clk 0:01:16.1]} 26... Rd5 {[%clk 0:01:17.2]} 27. Rc5 {[%clk 0:01:01.1]} 27...
Rd6 {[%clk 0:01:06.9]} 28. b4 {[%clk 0:00:58.1]} 28... g5 {[%clk 0:01:05.7]} 29.
Qe8+ {[%clk 0:00:51.3]} 29... Kh7 {[%clk 0:01:04.8]} 30. Nxg5+ {[%clk
0:00:51.9]} 1-0

[Event "*** Titled Tuesday Blitz"]
[Site "Chess.com"]
[Date "2021.03.16"]
[Round "10"]
[White "Tekushka"]
[Black "827883"]
[Result "1-0"]
[WhiteElo "2415"]
[BlackElo "2281"]
[TimeControl "180+1"]
[EndTime "11:52:59 PDT"]
[Termination "Tekushka won by resignation"]

1. e4 {[%clk 0:03:00.9]} 1... e5 {[%clk 0:02:59.7]} 2. Nf3 {[%clk 0:03:00.8]}
2... Nc6 {[%clk 0:03:00.2]} 3. Bc4 {[%clk 0:03:00.8]} 3... Nf6 {[%clk
0:03:00.4]} 4. d3 {[%clk 0:03:00]} 4... Bc5 {[%clk 0:03:00.2]} 5. c3 {[%clk
0:02:59.2]} 5... d6 {[%clk 0:03:00.6]} 6. Bb3 {[%clk 0:02:51.8]} 6... a5 {[%clk
0:02:58.2]} 7. Nbd2 {[%clk 0:02:45.7]} 7... h6 {[%clk 0:02:57.4]} 8. Nf1 {[%clk
0:02:44.1]} 8... Ng4 {[%clk 0:02:44.8]} 9. d4 {[%clk 0:02:40.4]} 9... Bb6 {[%clk
0:02:28]} 10. h3 {[%clk 0:02:39.4]} 10... Nf6 {[%clk 0:02:26.2]} 11. Ng3 {[%clk
0:02:31.2]} 11... O-O {[%clk 0:02:23.7]} 12. O-O {[%clk 0:02:27.7]} 12... Re8
{[%clk 0:02:19.8]} 13. Re1 {[%clk 0:02:26.9]} 13... Bd7 {[%clk 0:01:30.2]} 14.
Bc2 {[%clk 0:02:21.1]} 14... exd4 {[%clk 0:01:12.3]} 15. cxd4 {[%clk 0:02:20.6]}
15... Nb4 {[%clk 0:01:12.9]} 16. Bb1 {[%clk 0:02:19.9]} 16... Bc6 {[%clk
0:01:12.7]} 17. a3 {[%clk 0:02:13.4]} 17... Na6 {[%clk 0:01:12.4]} 18. Bf4
{[%clk 0:01:10.6]} 18... Qd7 {[%clk 0:01:10]} 19. Bc2 {[%clk 0:01:06.8]} 19...
Nb8 {[%clk 0:00:59.8]} 20. Qd3 {[%clk 0:01:01.3]} 20... Bb5 {[%clk 0:00:59.4]}
21. Qd2 {[%clk 0:01:01.4]} 21... Nc6 {[%clk 0:00:55.2]} 22. Nf5 {[%clk
0:00:57.2]} 22... a4 {[%clk 0:00:45.2]} 23. Bxh6 {[%clk 0:00:55.5]} 23... Ba5
{[%clk 0:00:42.6]} 24. Qg5 {[%clk 0:00:54.5]} 1-0

[Event "*** Titled Tuesday Blitz"]
[Site "Chess.com"]
[Date "2021.03.16"]
[Round "10"]
[White "Joker_Gumble"]
[Black "chessmadara"]
[Result "0-1"]
[WhiteElo "2315"]
[BlackElo "2195"]
[TimeControl "180+1"]
[EndTime "11:52:59 PDT"]
[Termination "chessmadara won by resignation"]

1. d4 {[%clk 0:03:00.9]} 1... Nf6 {[%clk 0:02:59.1]} 2. c4 {[%clk 0:03:01.4]}
2... g6 {[%clk 0:02:58.8]} 3. Nc3 {[%clk 0:03:01.1]} 3... d5 {[%clk 0:02:58.9]}
4. cxd5 {[%clk 0:02:46.7]} 4... Nxd5 {[%clk 0:02:59.8]} 5. e4 {[%clk 0:02:42]}
5... Nxc3 {[%clk 0:02:59.7]} 6. bxc3 {[%clk 0:02:42.9]} 6... Bg7 {[%clk
0:03:00.3]} 7. Bc4 {[%clk 0:02:43.2]} 7... c5 {[%clk 0:03:00.2]} 8. Ne2 {[%clk
0:02:43.1]} 8... O-O {[%clk 0:02:58.5]} 9. h4 {[%clk 0:02:42.3]} 9... cxd4
{[%clk 0:02:50.2]} 10. cxd4 {[%clk 0:02:36]} 10... Qa5+ {[%clk 0:02:49.4]} 11.
Kf1 {[%clk 0:02:35.5]} 11... Nc6 {[%clk 0:02:42.4]} 12. h5 {[%clk 0:02:33.5]}
12... Bg4 {[%clk 0:02:27.7]} 13. f3 {[%clk 0:02:28.7]} 13... Bd7 {[%clk
0:02:20.9]} 14. hxg6 {[%clk 0:02:26.6]} 14... hxg6 {[%clk 0:02:20.2]} 15. Bh6
{[%clk 0:02:21.8]} 15... Qb4 {[%clk 0:02:06.2]} 16. Qc1 {[%clk 0:02:11.9]} 16...
e5 {[%clk 0:00:54.9]} 17. Bxg7 {[%clk 0:02:04.5]} 17... Kxg7 {[%clk 0:00:55.8]}
18. Qh6+ {[%clk 0:02:04.4]} 18... Kf6 {[%clk 0:00:55.3]} 19. Qh4+ {[%clk
0:02:04.9]} 19... Kg7 {[%clk 0:00:53.9]} 20. Qh6+ {[%clk 0:00:50]} 20... Kf6
{[%clk 0:00:53.3]} 21. dxe5+ {[%clk 0:00:47.7]} 21... Nxe5 {[%clk 0:00:52.6]}
22. Qf4+ {[%clk 0:00:47.6]} 22... Kg7 {[%clk 0:00:44.1]} 23. Qxe5+ {[%clk
0:00:47.4]} 23... f6 {[%clk 0:00:44.4]} 24. Qe7+ {[%clk 0:00:46.5]} 24... Qxe7
{[%clk 0:00:43.2]} 0-1

[Event "*** Titled Tuesday Blitz"]
[Site "Chess.com"]
[Date "2021.03.16"]
[Round "10"]
[White "Matthew-Fishbein"]
[Black "Pinkito"]
[Result "1/2-1/2"]
[WhiteElo "2315"]
[BlackElo "2439"]
[TimeControl "180+1"]
[EndTime "11:53:04 PDT"]
[Termination "Game drawn by repetition"]

1. e4 {[%clk 0:03:00.9]} 1... d5 {[%clk 0:02:59.4]} 2. exd5 {[%clk 0:03:00.4]}
2... Qxd5 {[%clk 0:02:57.7]} 3. Nc3 {[%clk 0:03:00.6]} 3... Qd8 {[%clk
0:02:53.2]} 4. d4 {[%clk 0:02:56.7]} 4... Nf6 {[%clk 0:02:52.8]} 5. h3 {[%clk
0:02:54.5]} 5... c6 {[%clk 0:02:52.3]} 6. Be3 {[%clk 0:02:54.6]} 6... Bf5 {[%clk
0:02:51.7]} 7. Bc4 {[%clk 0:02:54.6]} 7... e6 {[%clk 0:02:51.7]} 8. Nf3 {[%clk
0:02:54.3]} 8... Nbd7 {[%clk 0:02:49.8]} 9. O-O {[%clk 0:02:53.7]} 9... h6
{[%clk 0:02:48.9]} 10. Bd3 {[%clk 0:02:53.4]} 10... Bxd3 {[%clk 0:02:48.4]} 11.
Qxd3 {[%clk 0:02:54.3]} 11... Be7 {[%clk 0:02:47.9]} 12. Ne5 {[%clk 0:02:48.8]}
12... Nxe5 {[%clk 0:02:47.3]} 13. dxe5 {[%clk 0:02:49.2]} 13... Qxd3 {[%clk
0:02:47.4]} 14. cxd3 {[%clk 0:02:50.1]} 14... Nd5 {[%clk 0:02:45.3]} 15. Nxd5
{[%clk 0:02:50.1]} 15... cxd5 {[%clk 0:02:45.1]} 16. Rfc1 {[%clk 0:02:46.1]}
16... Kd7 {[%clk 0:02:45]} 17. Rc3 {[%clk 0:02:43.5]} 17... b6 {[%clk
0:02:44.7]} 18. a4 {[%clk 0:02:36.7]} 18... Rhc8 {[%clk 0:02:41.9]} 19. Rxc8
{[%clk 0:02:29.4]} 19... Rxc8 {[%clk 0:02:40.4]} 20. a5 {[%clk 0:02:29.6]} 20...
Bc5 {[%clk 0:02:30.3]} 21. axb6 {[%clk 0:02:20.6]} 21... axb6 {[%clk 0:02:30.1]}
22. d4 {[%clk 0:01:43.2]} 22... Bb4 {[%clk 0:02:29.7]} 23. Kf1 {[%clk
0:01:40.5]} 23... Ba5 {[%clk 0:02:24]} 24. Rc1 {[%clk 0:01:18.4]} 24... Rxc1+
{[%clk 0:02:22.6]} 25. Bxc1 {[%clk 0:01:19.3]} 25... Kc6 {[%clk 0:02:22.5]} 26.
Ke2 {[%clk 0:01:19.8]} 26... Kb5 {[%clk 0:02:22.8]} 27. Kd3 {[%clk 0:01:20.4]}
27... Be1 {[%clk 0:02:19.3]} 28. f4 {[%clk 0:01:18.2]} 28... h5 {[%clk
0:02:19.5]} 29. g4 {[%clk 0:01:17.4]} 29... hxg4 {[%clk 0:02:19.7]} 30. hxg4
{[%clk 0:01:18.3]} 30... g6 {[%clk 0:02:20]} 31. b3 {[%clk 0:00:59]} 31... Kb4
{[%clk 0:02:14.4]} 32. Kc2 {[%clk 0:00:42.3]} 32... b5 {[%clk 0:02:14.4]} 33.
Be3 {[%clk 0:00:33.3]} 33... Ka3 {[%clk 0:02:05.7]} 34. Bc1+ {[%clk 0:00:33.1]}
34... Ka2 {[%clk 0:01:54.2]} 35. Be3 {[%clk 0:00:27.4]} 35... b4 {[%clk
0:01:50.7]} 36. Bc1 {[%clk 0:00:20.5]} 36... Bc3 {[%clk 0:01:47.3]} 37. Be3
{[%clk 0:00:20.3]} 37... Ka1 {[%clk 0:01:47]} 38. Bg1 {[%clk 0:00:20.3]} 38...
Ka2 {[%clk 0:01:41.9]} 39. Be3 {[%clk 0:00:20]} 39... Be1 {[%clk 0:01:41.3]} 40.
Bg1 {[%clk 0:00:19.8]} 40... Bg3 {[%clk 0:01:38.7]} 41. Be3 {[%clk 0:00:19.8]}
41... Be1 {[%clk 0:01:36]} 1/2-1/2

[Event "*** Titled Tuesday Blitz"]
[Site "Chess.com"]
[Date "2021.03.16"]
[Round "10"]
[White "muchojogo"]
[Black "Playgood28"]
[Result "1-0"]
[WhiteElo "2404"]
[BlackElo "2270"]
[TimeControl "180+1"]
[EndTime "11:53:04 PDT"]
[Termination "muchojogo won by resignation"]

1. d4 {[%clk 0:03:00.9]} 1... f5 {[%clk 0:02:59.1]} 2. e4 {[%clk 0:02:56.6]}
2... fxe4 {[%clk 0:02:58.1]} 3. Nc3 {[%clk 0:02:57.1]} 3... Nf6 {[%clk
0:02:57.7]} 4. Bg5 {[%clk 0:02:57.3]} 4... Nc6 {[%clk 0:02:58]} 5. d5 {[%clk
0:02:57.9]} 5... Ne5 {[%clk 0:02:57.8]} 6. Qe2 {[%clk 0:02:58.6]} 6... Nf7
{[%clk 0:02:51.4]} 7. h4 {[%clk 0:02:57.4]} 7... h6 {[%clk 0:02:48]} 8. Bxf6
{[%clk 0:02:56.6]} 8... gxf6 {[%clk 0:02:44]} 9. Nxe4 {[%clk 0:02:55.6]} 9...
Bg7 {[%clk 0:02:43.8]} 10. Qh5 {[%clk 0:02:39.5]} 10... O-O {[%clk 0:02:40.8]}
11. Bd3 {[%clk 0:02:39.6]} 11... Ne5 {[%clk 0:02:30.4]} 12. O-O-O {[%clk
0:02:39.7]} 12... Qe8 {[%clk 0:02:25.7]} 13. Qxe8 {[%clk 0:02:21.2]} 13... Rxe8
{[%clk 0:02:24.7]} 14. Be2 {[%clk 0:02:21.9]} 14... f5 {[%clk 0:02:22.1]} 15.
Ng3 {[%clk 0:02:20.9]} 15... e6 {[%clk 0:02:17.9]} 16. dxe6 {[%clk 0:02:19.9]}
16... dxe6 {[%clk 0:02:17.1]} 17. Nf3 {[%clk 0:02:15.8]} 17... Ng4 {[%clk
0:02:14.6]} 18. Rhf1 {[%clk 0:02:13.9]} 18... e5 {[%clk 0:02:05.2]} 19. Bc4+
{[%clk 0:02:13.5]} 19... Kf8 {[%clk 0:01:59.9]} 20. Nh5 {[%clk 0:02:04.3]} 20...
Bh8 {[%clk 0:01:49.2]} 21. Ng3 {[%clk 0:01:45.8]} 21... e4 {[%clk 0:01:26.9]}
22. Nd4 {[%clk 0:01:44.7]} 22... f4 {[%clk 0:01:25.7]} 23. Nh5 {[%clk
0:01:38.8]} 23... c6 {[%clk 0:01:09.5]} 24. Nxf4 {[%clk 0:01:37.8]} 24... Bf6
{[%clk 0:01:00.5]} 25. Nde6+ {[%clk 0:01:25.1]} 25... Bxe6 {[%clk 0:00:55.2]}
26. Nxe6+ {[%clk 0:01:26]} 26... Ke7 {[%clk 0:00:43.3]} 27. Nc7 {[%clk
0:01:26.9]} 27... Rad8 {[%clk 0:00:39.7]} 28. Nxe8 {[%clk 0:01:27.1]} 28... Rxe8
{[%clk 0:00:38.8]} 29. Rde1 {[%clk 0:01:20.9]} 29... Kd6 {[%clk 0:00:32.7]} 30.
f3 {[%clk 0:01:19.5]} 30... Ne5 {[%clk 0:00:30.1]} 31. Rxe4 {[%clk 0:01:18.2]}
31... Rg8 {[%clk 0:00:18.8]} 32. Bxg8 {[%clk 0:01:17.3]} 1-0

[Event "*** Titled Tuesday Blitz"]
[Site "Chess.com"]
[Date "2021.03.16"]
[Round "10"]
[White "Paladin61"]
[Black "gurelediz"]
[Result "1-0"]
[WhiteElo "2788"]
[BlackElo "2673"]
[TimeControl "180+1"]
[EndTime "11:53:06 PDT"]
[Termination "Paladin61 won by checkmate"]

1. b3 {[%clk 0:03:00.3]} 1... a5 {[%clk 0:02:59.6]} 2. Bb2 {[%clk 0:02:59.7]}
2... a4 {[%clk 0:03:00.5]} 3. e3 {[%clk 0:02:59.7]} 3... axb3 {[%clk 0:03:00.6]}
4. axb3 {[%clk 0:02:59.2]} 4... Rxa1 {[%clk 0:03:01.5]} 5. Bxa1 {[%clk 0:03:00]}
5... b6 {[%clk 0:03:02.4]} 6. Nf3 {[%clk 0:02:59.4]} 6... Bb7 {[%clk 0:03:02.9]}
7. c4 {[%clk 0:02:47.8]} 7... e6 {[%clk 0:03:03.2]} 8. Nc3 {[%clk 0:02:47.5]}
8... Nf6 {[%clk 0:03:03.8]} 9. Qc2 {[%clk 0:02:46.9]} 9... Be7 {[%clk
0:03:04.4]} 10. d4 {[%clk 0:02:44.5]} 10... O-O {[%clk 0:03:04.9]} 11. Be2
{[%clk 0:02:38.5]} 11... d5 {[%clk 0:03:05.4]} 12. O-O {[%clk 0:02:37.6]} 12...
c5 {[%clk 0:03:06.1]} 13. Rd1 {[%clk 0:02:32.4]} 13... Nc6 {[%clk 0:03:03]} 14.
dxc5 {[%clk 0:02:26.6]} 14... Nb4 {[%clk 0:03:02.2]} 15. Qb1 {[%clk 0:02:25.2]}
15... bxc5 {[%clk 0:03:02.3]} 16. cxd5 {[%clk 0:02:22.1]} 16... Nfxd5 {[%clk
0:02:59.5]} 17. Ne4 {[%clk 0:02:18.3]} 17... h6 {[%clk 0:02:52.4]} 18. Ne5
{[%clk 0:02:10.5]} 18... Qc7 {[%clk 0:02:48.1]} 19. Bf3 {[%clk 0:01:56.4]} 19...
Ra8 {[%clk 0:02:44.9]} 20. Bb2 {[%clk 0:01:55]} 20... Ra2 {[%clk 0:02:21.8]} 21.
Bh5 {[%clk 0:01:33.5]} 21... f6 {[%clk 0:01:59.4]} 22. Bf7+ {[%clk 0:01:14.9]}
22... Kf8 {[%clk 0:01:58.1]} 23. Ng5 {[%clk 0:01:03.4]} 23... Qxe5 {[%clk
0:01:10.9]} 24. Qh7 {[%clk 0:00:45.4]} 24... Bd8 {[%clk 0:01:00.7]} 25. Qg8+
{[%clk 0:00:39.6]} 25... Ke7 {[%clk 0:01:01.1]} 26. Qe8+ {[%clk 0:00:35.1]}
26... Kd6 {[%clk 0:01:01.5]} 27. Bxe5+ {[%clk 0:00:32.8]} 27... fxe5 {[%clk
0:00:58.8]} 28. Qxd8+ {[%clk 0:00:30.1]} 28... Kc6 {[%clk 0:00:59.4]} 29. Be8#
{[%clk 0:00:30.2]} 1-0

[Event "*** Titled Tuesday Blitz"]
[Site "Chess.com"]
[Date "2021.03.16"]
[Round "10"]
[White "Fandorine"]
[Black "SanchezKelvin"]
[Result "1-0"]
[WhiteElo "2880"]
[BlackElo "2645"]
[TimeControl "180+1"]
[EndTime "11:53:11 PDT"]
[Termination "Fandorine won by resignation"]

1. c4 {[%clk 0:03:00.9]} 1... Nf6 {[%clk 0:02:58.5]} 2. Nc3 {[%clk 0:03:00.7]}
2... g6 {[%clk 0:02:58.6]} 3. g3 {[%clk 0:03:01]} 3... Bg7 {[%clk 0:02:58.1]} 4.
Bg2 {[%clk 0:03:01.5]} 4... O-O {[%clk 0:02:58.6]} 5. Nf3 {[%clk 0:03:01.9]}
5... c5 {[%clk 0:02:58.6]} 6. O-O {[%clk 0:03:02.1]} 6... Nc6 {[%clk 0:02:59.1]}
7. d4 {[%clk 0:02:59.7]} 7... d6 {[%clk 0:02:59.1]} 8. d5 {[%clk 0:02:56]} 8...
Na5 {[%clk 0:02:58.6]} 9. b3 {[%clk 0:02:55.8]} 9... Nxd5 {[%clk 0:02:57.5]} 10.
Nxd5 {[%clk 0:02:55]} 10... Bxa1 {[%clk 0:02:56.7]} 11. Bg5 {[%clk 0:02:46.7]}
11... Bf6 {[%clk 0:02:55.1]} 12. Nxf6+ {[%clk 0:02:46.8]} 12... exf6 {[%clk
0:02:54.9]} 13. Bf4 {[%clk 0:02:44.7]} 13... b6 {[%clk 0:02:45]} 14. Nd2 {[%clk
0:02:33.7]} 14... Bb7 {[%clk 0:02:44.3]} 15. Bxb7 {[%clk 0:02:33.3]} 15... Nxb7
{[%clk 0:02:43.5]} 16. Ne4 {[%clk 0:02:33.9]} 16... Re8 {[%clk 0:02:41.8]} 17.
Qd5 {[%clk 0:02:28]} 17... Rb8 {[%clk 0:02:24.1]} 18. Rd1 {[%clk 0:02:25.2]}
18... Re6 {[%clk 0:02:09.8]} 19. Nc3 {[%clk 0:02:10.2]} 19... g5 {[%clk
0:01:59.8]} 20. Bc1 {[%clk 0:02:09.1]} 20... Re5 {[%clk 0:01:45.1]} 21. Qd3
{[%clk 0:02:01.2]} 21... Na5 {[%clk 0:01:36.8]} 22. Nd5 {[%clk 0:01:58.1]} 22...
Nc6 {[%clk 0:01:35.9]} 23. Bb2 {[%clk 0:01:58.1]} 23... Re6 {[%clk 0:01:28.7]}
24. a3 {[%clk 0:01:57.8]} 24... Ne5 {[%clk 0:01:22.4]} 25. Qf5 {[%clk
0:01:55.9]} 25... b5 {[%clk 0:01:13.8]} 26. f4 {[%clk 0:01:54.8]} 26... gxf4
{[%clk 0:01:13.1]} 27. gxf4 {[%clk 0:01:44.1]} 27... Nd7 {[%clk 0:01:12]} 28.
Kh1 {[%clk 0:01:17.5]} 28... bxc4 {[%clk 0:01:04.8]} 29. Rg1+ {[%clk 0:01:17]}
29... Kh8 {[%clk 0:01:04.3]} 30. Nxf6 {[%clk 0:01:12.2]} 30... Nxf6 {[%clk
0:00:38.1]} 31. Qg5 {[%clk 0:01:10.4]} 1-0

[Event "*** Titled Tuesday Blitz"]
[Site "Chess.com"]
[Date "2021.03.16"]
[Round "10"]
[White "novocane"]
[Black "WiktoriaPOL"]
[Result "1-0"]
[WhiteElo "2239"]
[BlackElo "2101"]
[TimeControl "180+1"]
[EndTime "11:53:11 PDT"]
[Termination "novocane won by resignation"]

1. d4 {[%clk 0:02:59.7]} 1... Nf6 {[%clk 0:02:59]} 2. c4 {[%clk 0:02:59.8]} 2...
g6 {[%clk 0:02:58.5]} 3. Nc3 {[%clk 0:03:00.1]} 3... Bg7 {[%clk 0:02:58.4]} 4.
e4 {[%clk 0:03:00.9]} 4... d6 {[%clk 0:02:58]} 5. f3 {[%clk 0:03:01.5]} 5... O-O
{[%clk 0:02:57.8]} 6. Bg5 {[%clk 0:03:01.8]} 6... c5 {[%clk 0:02:56.1]} 7. d5
{[%clk 0:03:01.9]} 7... e6 {[%clk 0:02:51]} 8. Qd2 {[%clk 0:03:01.7]} 8... exd5
{[%clk 0:02:46.5]} 9. cxd5 {[%clk 0:03:02.6]} 9... Re8 {[%clk 0:02:42.6]} 10.
Nge2 {[%clk 0:03:02.3]} 10... a6 {[%clk 0:02:36.8]} 11. a4 {[%clk 0:03:02.2]}
11... Nbd7 {[%clk 0:02:31.8]} 12. Ng3 {[%clk 0:03:01.6]} 12... Qa5 {[%clk
0:02:12.2]} 13. Ra3 {[%clk 0:02:55.1]} 13... Ne5 {[%clk 0:02:08.5]} 14. Be2
{[%clk 0:02:40.9]} 14... Qc7 {[%clk 0:01:44.3]} 15. O-O {[%clk 0:02:38.1]} 15...
Rb8 {[%clk 0:01:42.8]} 16. h3 {[%clk 0:02:35]} 16... c4 {[%clk 0:01:03.7]} 17.
Bh6 {[%clk 0:01:44]} 17... Qb6+ {[%clk 0:00:50.3]} 18. Be3 {[%clk 0:01:34.3]}
18... Qa5 {[%clk 0:00:45.4]} 19. Raa1 {[%clk 0:01:26.5]} 19... Qb4 {[%clk
0:00:36.9]} 20. a5 {[%clk 0:01:22.6]} 20... Ned7 {[%clk 0:00:27.4]} 21. Ra4
{[%clk 0:01:14.8]} 21... Qb3 {[%clk 0:00:21.7]} 22. Bd1 {[%clk 0:00:59.2]} 1-0